bitfinex-derivatives/quotes_ETHF0:USTF0_20250620
["timestamp","ask_amount","ask_price","bid_price","bid_amount"]
[1750397802850,1.98777204,2512.0,2511.9,10.22138932]
[1750397804343,1.98777204,2512.0,2511.9,6.255]
[1750397804551,2.67497204,2512.0,2511.9,6.255]
[1750397807155,0.06933781,2511.8,2511.6,0.79619]
[1750397807355,0.79619,2511.7,2511.6,7.05119]
[1750397807661,0.79621,2511.7,2511.6,0.79621]
[1750397809059,4.07330781,2511.8,2511.7,0.79619]
[1750397809359,4.39914165,2511.8,2511.7,0.79619]
[1750397809561,3.2078,2511.8,2511.7,3.96646932]
[1750397811263,0.86544781,2512.0,2511.9,0.79613]
[1750397811559,2.05702578,2512.0,2511.9,0.79613]
[1750397811760,2.05702578,2512.0,2511.9,3.96640932]
[1750397812161,1.26091578,2512.0,2511.9,3.96640932]
[1750397812468,2.05700578,2512.0,2511.9,3.96640932]
[1750397814462,1.26091578,2512.0,2511.9,3.96640932]
[1750397815559,2.05700578,2512.0,2511.9,3.96640932]
[1750397816161,2.05700578,2512.0,2511.9,0.79613]
[1750397817163,2.05700578,2512.0,2511.9,31.31313]
[1750397818668,2.05700578,2512.0,2511.9,31.30813]
[1750397820471,0.06933781,2512.0,2511.9,31.30813]
[1750397820772,0.06933781,2512.0,2511.9,32.66703]
[1750397825879,0.06933781,2512.0,2511.9,31.30813]
[1750397827179,0.86542781,2512.0,2511.9,0.79613]
[1750397827381,0.06933781,2512.0,2511.9,31.28313]
[1750397827973,0.86542781,2512.0,2511.9,31.28313]
[1750397828376,0.06933781,2512.0,2511.9,31.28313]
[1750397828777,0.86542781,2512.0,2511.9,31.28313]
[1750397829675,0.06933781,2512.0,2511.9,31.28313]
[1750397830276,0.86542781,2512.0,2511.9,31.28313]
[1750397831789,0.86542781,2512.0,2511.9,0.79613]
[1750397831978,0.86542781,2512.0,2511.9,31.26613]
[1750397833086,0.06933781,2512.0,2511.9,0.79613]
[1750397833285,0.06933781,2512.0,2511.9,31.26013]
[1750397838284,3.2078,2512.2,2512.1,0.79606]
[1750397838494,3.2078,2512.2,2512.1,28.16633932]
[1750397839989,1.44385,2512.5,2512.4,0.79597]
[1750397840285,1.83813603,2512.5,2512.4,24.99897]
[1750397840984,3.2078,2512.8,2512.6,0.79589]
[1750397841193,1.19001557,2512.7,2512.6,24.99889]
[1750397842089,1.19001557,2512.7,2512.6,25.65849]
[1750397844791,3.2078,2512.8,2512.7,0.79587]
[1750397844992,4.00364,2512.8,2512.7,7.04587]
[1750397845991,3.2078,2512.8,2512.7,10.21614932]
[1750397846694,4.00364,2512.8,2512.7,10.21614932]
[1750397848694,4.00364,2512.8,2512.7,9.42027932]
[1750397850094,4.00364,2512.8,2512.7,10.21614932]
[1750397850582,3.2078,2512.8,2512.7,10.21614932]
[1750397851086,4.00364,2512.8,2512.7,9.42027932]
[1750397851590,3.2078,2512.8,2512.7,10.21614932]
[1750397852484,3.2078,2512.8,2512.7,11.56464932]
[1750397852689,3.2078,2513.1,2512.6,1.3483]
[1750397852995,0.79587,2512.7,2512.6,6.8866]
[1750397853192,0.79587,2512.7,2512.6,31.1316]
[1750397853495,0.79586,2512.8,2512.6,31.1316]
[1750397853698,0.79586,2512.8,2512.7,0.79586]
[1750397855098,0.86519781,2512.8,2512.7,0.79586]
[1750397855391,0.79587,2512.7,2512.6,35.09775932]
[1750397855792,0.86519781,2512.8,2512.7,0.79587]
[1750397858402,0.86519781,2512.8,2512.7,31.25887]
[1750397858699,0.86519781,2512.8,2512.7,0.79587]
[1750397858894,0.86519781,2512.8,2512.7,31.25887]
[1750397859795,0.86519781,2512.8,2512.7,30.463]
[1750397860099,0.86519781,2512.8,2512.7,31.25887]
[1750397860500,2.14119781,2512.8,2512.7,0.79587]
[1750397860702,2.14119781,2512.8,2512.7,31.25187]
[1750397864504,2.14119781,2512.8,2512.7,25.02387]
[1750397865001,0.79587,2512.7,2512.6,10.05587932]
[1750397865300,0.7959,2512.6,2512.5,0.79594]
[1750397865508,0.79597,2512.5,2512.4,31.24395]
[1750397867305,0.79597,2512.5,2512.4,0.79595]
[1750397867506,0.79597,2512.5,2512.4,31.25095]
[1750397867807,2.13927,2512.5,2512.4,31.25095]
[1750397868201,2.13927,2512.5,2512.4,30.455]
[1750397868906,0.79597,2512.4,2512.3,1.44958]
[1750397869103,0.79597,2512.4,2512.3,6.8796]
[1750397869407,0.79597,2512.4,2512.3,31.1006]
[1750397870201,0.79597,2512.4,2512.3,31.8966]
[1750397870803,0.79597,2512.4,2512.3,31.8916]
[1750397871197,0.79597,2512.4,2512.3,31.0956]
[1750397871611,0.79597,2512.4,2512.3,31.0936]
[1750397872006,0.79597,2512.4,2512.3,31.8896]
[1750397872207,0.79597,2512.4,2512.3,31.8906]
[1750397873307,0.79597,2512.4,2512.3,31.8856]
[1750397873502,3.2078,2512.4,2512.1,6.226]
[1750397873806,0.79603,2512.3,2512.2,25.01601]
[1750397874607,4.00379,2512.4,2512.3,0.796]
[1750397874807,5.18911335,2512.4,2512.3,0.796]
[1750397875110,4.00379,2512.4,2512.3,0.796]
[1750397875611,0.79599,2512.4,2512.3,0.796]
[1750397876611,3.27713781,2512.5,2512.4,0.79597]
[1750397876801,4.46278858,2512.5,2512.4,3.96624932]
[1750397879011,3.27713781,2512.5,2512.4,3.96624932]
[1750397880302,4.07307781,2512.5,2512.4,3.96624932]
[1750397881112,3.27713781,2512.5,2512.4,3.96624932]
[1750397881311,4.07307781,2512.5,2512.4,3.96624932]
[1750397882104,3.27713781,2512.5,2512.4,3.96624932]
[1750397882711,3.27713781,2512.5,2512.4,5.28044932]
[1750397885210,3.27713781,2512.5,2512.4,2.11017]
[1750397885406,3.27713781,2512.5,2512.4,35.71644932]
[1750397887716,0.6728,2513.1,2512.4,35.71644932]
[1750397887717,0.79579,2513.0,2512.9,0.79578]
[1750397888014,5.18602459,2513.0,2512.9,34.39705932]
[1750397888210,4.39023459,2513.0,2512.9,34.39705932]
[1750397888817,3.2078,2513.0,2512.9,34.39705932]
[1750397890715,4.00358,2513.0,2512.9,34.39705932]
[1750397890921,4.00358,2513.0,2512.9,34.39708932]
[1750397893518,4.00358,2513.0,2512.9,3.96608932]
[1750397893719,4.00358,2513.0,2512.9,34.38608932]
[1750397894323,3.2078,2513.0,2512.9,34.38608932]
[1750397895218,3.2078,2513.3,2512.9,33.59027932]
[1750397895413,3.2078,2513.3,2513.2,0.79571]
[1750397895624,3.2078,2513.6,2513.4,0.79562]
[1750397895921,4.0034,2513.6,2513.5,0.79562]
[1750397896121,5.18450631,2513.6,2513.5,0.79562]
[1750397896315,0.79562,2513.5,2513.4,24.203]
[1750397896519,3.34992631,2513.5,2513.4,24.99865]
[1750397897326,0.79562,2513.5,2513.4,24.99865]
[1750397897527,4.0034,2513.6,2513.5,0.79562]
[1750397897827,0.79562,2513.5,2513.4,24.99864]
[1750397898027,0.79562,2513.5,2513.4,24.203]
[1750397898227,0.79562,2513.5,2513.4,24.99865]
[1750397899622,0.86495781,2513.5,2513.4,24.99865]
[1750397899932,0.86495781,2513.5,2513.4,24.203]
[1750397900122,0.86495781,2513.5,2513.4,24.99865]
[1750397900323,0.06933781,2513.5,2513.4,24.99865]
[1750397901232,0.06933781,2513.5,2513.4,26.25955]
[1750397902732,0.06933781,2513.5,2513.4,26.88715]
[1750397902931,0.06933781,2513.5,2513.4,25.62625]
[1750397904733,0.06933781,2513.5,2513.4,26.96745]
[1750397906326,0.06933781,2513.5,2513.4,25.62625]
[1750397910535,0.06933781,2513.5,2513.4,1.42325]
[1750397910836,0.86495781,2513.5,2513.4,34.37992932]
[1750397911028,2.02633781,2513.5,2513.4,34.37992932]
[1750397911233,0.06933781,2513.5,2513.4,34.37992932]
[1750397913232,0.86495781,2513.5,2513.4,34.37992932]
[1750397913533,0.86495781,2513.5,2513.4,34.36492932]
[1750397913836,0.06933781,2513.5,2513.4,34.36492932]
[1750397914633,0.86495781,2513.5,2513.4,34.36192932]
[1750397914934,0.86495781,2513.5,2513.4,3.96592932]
[1750397915326,0.86495781,2513.5,2513.4,34.35692932]
[1750397915930,0.06933781,2513.5,2513.4,34.35692932]
[1750397916130,0.86495781,2513.5,2513.4,34.35692932]
[1750397916736,0.06933781,2513.5,2513.4,34.35692932]
[1750397918737,0.86495781,2513.5,2513.4,31.18165]
[1750397919537,0.06933781,2513.5,2513.4,31.18165]
[1750397920038,0.86495781,2513.5,2513.4,31.18165]
[1750397921045,0.86495781,2513.5,2513.4,34.34292932]
[1750397921342,0.79568,2513.3,2513.2,24.95671]
[1750397921741,2.76837,2513.4,2513.3,0.79568]
[1750397921931,1.9727,2513.4,2513.3,0.79568]
[1750397922136,2.76835,2513.4,2513.3,0.79568]
[1750397923244,0.6482,2513.4,2513.3,0.79568]
[1750397923837,0.6482,2513.4,2513.3,24.99068]
[1750397924036,1.44385,2513.4,2513.3,3.96595932]
[1750397924232,2.62434422,2513.4,2513.3,28.15495932]
[1750397925739,1.18049422,2513.4,2513.3,28.15495932]
[1750397925938,0.06933781,2513.5,2513.4,0.79565]
[1750397926140,1.25105912,2513.5,2513.4,1.42135]
[1750397926348,0.06933781,2513.5,2513.4,1.42135]
[1750397930765,0.86495781,2513.5,2513.4,1.42135]
[1750397931261,0.86495781,2513.5,2513.4,31.81935]
[1750397931462,0.86495781,2513.5,2513.4,30.394]
[1750397931660,2.04651918,2513.5,2513.4,30.394]
[1750397932262,2.73241918,2513.5,2513.4,30.394]
[1750397934261,0.79565,2513.4,2513.3,3.2078]
[1750397934459,0.79565,2513.4,2513.3,33.6108]
[1750397934968,0.79565,2513.4,2513.3,3.2078]
[1750397935164,0.79565,2513.4,2513.3,33.6088]
[1750397936060,0.79565,2513.4,2513.3,3.2078]
[1750397936266,0.79565,2513.4,2513.3,33.6058]
[1750397938263,0.79565,2513.4,2513.3,3.2078]
[1750397938470,0.79565,2513.4,2513.3,33.6048]
[1750397939271,0.79565,2513.4,2513.3,3.2078]
[1750397939566,0.79575,2513.1,2513.0,9.4238]
[1750397939763,0.79575,2513.1,2513.0,33.6078]
[1750397939970,1.97614691,2513.1,2513.0,6.216]
[1750397940167,1.97614691,2513.1,2513.0,30.4]
[1750397940168,3.28984691,2513.1,2513.0,30.4]
[1750397940368,3.28984691,2513.1,2513.0,6.216]
[1750397940569,3.28984691,2513.1,2513.0,30.4]
[1750397940868,0.79581,2512.9,2512.8,0.6806]
[1750397941271,0.79581,2512.9,2512.8,31.0806]
[1750397941469,1.47731,2512.9,2512.8,31.0806]
[1750397943773,0.79584,2512.8,2512.7,6.214]
[1750397943974,0.79587,2512.7,2512.6,0.6326]
[1750397944273,0.79587,2512.7,2512.6,6.8466]
[1750397944469,0.79587,2512.7,2512.6,31.0246]
[1750397945980,0.79587,2512.7,2512.6,0.6326]
[1750397946379,0.79587,2512.7,2512.6,31.0206]
[1750397947377,1.98961,2512.8,2512.5,6.215]
[1750397947673,0.79594,2512.5,2512.4,3.2078]
[1750397947873,0.79597,2512.4,2512.3,0.6323]
[1750397948068,0.79597,2512.4,2512.2,6.215]
[1750397948275,0.796,2512.3,2512.2,30.397]
[1750397948579,0.796,2512.3,2512.2,33.56727932]
[1750397951577,0.796,2512.3,2512.2,3.17027932]
[1750397951779,0.796,2512.3,2512.2,33.56727932]
[1750397953270,0.796,2512.3,2512.2,3.17027932]
[1750397953472,0.796,2512.3,2512.2,33.56527932]
[1750397953680,0.79603,2512.2,2512.1,3.8401]
[1750397953882,0.79603,2512.2,2512.1,37.40137932]
[1750397955181,0.79603,2512.2,2512.1,38.77527932]
[1750397955982,0.79603,2512.2,2512.1,39.57133932]
[1750397956978,0.79603,2512.2,2512.1,38.77527932]
[1750397957285,0.79603,2512.2,2512.1,38.76727932]
[1750397958278,0.79603,2512.2,2512.1,8.38427932]
[1750397958485,0.79603,2512.2,2512.1,32.54927932]
[1750397958984,0.79603,2512.2,2512.1,7.01037932]
[1750397959188,0.79603,2512.2,2512.1,3.8401]
[1750397959480,0.79603,2512.2,2512.1,0.6323]
[1750397959786,3.2078,2512.3,2511.8,9.4238]
[1750397959787,0.79613,2511.9,2511.8,9.4238]
[1750397960082,0.79613,2511.9,2511.8,37.55523932]
[1750397960482,0.79613,2511.9,2511.8,38.89473932]
[1750397961188,0.79613,2511.9,2511.8,38.73067932]
[1750397961688,0.79613,2511.9,2511.8,35.01706]
[1750397961882,0.79613,2511.9,2511.8,38.18733932]
[1750397962079,0.79613,2511.9,2511.8,39.44603932]
[1750397963285,0.79613,2511.9,2511.8,38.64987932]
[1750397963786,0.79613,2511.9,2511.8,34.2489]
[1750397963987,0.79613,2511.9,2511.8,37.41917932]
[1750397964488,0.79613,2511.9,2511.8,37.43317932]
[1750397964890,0.79613,2511.9,2511.8,7.01017932]
[1750397965087,0.79613,2511.9,2511.8,37.43217932]
[1750397967586,0.79613,2511.9,2511.8,38.22833932]
[1750397967786,0.79613,2511.9,2511.8,38.77857932]
[1750397968791,0.79613,2511.9,2511.8,37.43217932]
[1750397970688,0.79613,2511.9,2511.8,38.22833932]
[1750397970888,0.79613,2511.9,2511.8,37.43217932]
[1750397971700,0.79613,2511.9,2511.8,7.01017932]
[1750397971892,0.79613,2511.9,2511.8,13.22617932]
[1750397972098,0.79613,2511.9,2511.8,38.21133932]
[1750397972393,0.79613,2511.9,2511.8,10.0559]
[1750397972596,0.79613,2511.9,2511.8,31.0361]
[1750397975700,0.86546781,2511.9,2511.8,31.0361]
[1750397983202,0.86546781,2511.9,2511.8,31.83226]
[1750397983799,0.86546781,2511.9,2511.8,31.0361]
[1750397984104,0.86546781,2511.9,2511.8,31.83226]
[1750397984401,0.86546781,2511.9,2511.8,31.0361]
[1750397984998,0.86546781,2511.9,2511.8,31.83226]
[1750397985199,0.86546781,2511.9,2511.8,31.0361]
[1750397986506,0.86546781,2511.9,2511.8,31.83226]
[1750397986707,0.06933781,2511.9,2511.8,31.83226]
[1750397986901,0.06933781,2511.9,2511.8,33.08806]
[1750397987903,0.06933781,2511.9,2511.8,2.68406]
[1750397987904,0.86546781,2511.9,2511.8,2.68406]
[1750397988103,0.86546781,2511.9,2511.8,1.8879]
[1750397988409,0.86546781,2511.9,2511.8,31.0291]
[1750397990205,0.86546781,2511.9,2511.8,31.0281]
[1750397990406,0.79616,2511.8,2511.7,49.01327932]
[1750397990613,0.79616,2511.8,2511.7,79.40927932]
[1750397992411,0.79616,2511.8,2511.7,79.41027932]
[1750397992714,0.79619,2511.7,2511.6,0.6675]
[1750397992906,0.79619,2511.7,2511.6,31.0595]
[1750397993907,0.79619,2511.7,2511.6,0.6675]
[1750397994110,0.79622,2511.6,2511.5,6.37807932]
[1750397994504,1.99057,2511.6,2511.3,3.17027932]
[1750397994708,0.79628,2511.4,2511.3,3.17027932]
[1750397994913,0.79628,2511.4,2511.3,9.39127932]
[1750397995108,0.79628,2511.4,2511.3,6.221]
[1750397995413,0.79628,2511.4,2511.3,30.408]
[1750397995414,1.42228,2511.4,2511.3,30.408]
[1750397996210,0.79632,2511.3,2511.2,4.62511932]
[1750397996412,0.79632,2511.3,2511.2,35.03311932]
[1750397996616,0.79632,2511.3,2511.2,34.23677932]
[1750397996918,0.79632,2511.3,2511.2,34.23477932]
[1750397997517,0.79635,2511.2,2511.1,45.859]
[1750397997717,0.79641,2511.0,2510.9,6.8888]
[1750397997918,0.79641,2511.0,2510.9,0.6678]
[1750397998214,0.79644,2510.9,2510.8,3.17027932]
[1750397998616,0.6284,2511.0,2510.8,27.35827932]
[1750397998816,0.79642,2511.0,2510.8,28.15473932]
[1750397999114,0.79642,2511.0,2510.9,0.6678]
[1750397999516,0.79642,2511.0,2510.9,1.46424]
[1750398000323,0.79642,2511.0,2510.9,0.6678]
[1750398000512,4.4583,2511.1,2510.9,0.6678]
[1750398000513,3.2078,2511.1,2510.9,0.6678]
[1750398000711,3.2078,2511.1,2511.0,28.15568932]
[1750398000912,3.2078,2511.1,2511.0,28.78238932]
[1750398004635,4.00411,2511.4,2511.3,0.79632]
[1750398005127,3.2078,2511.4,2511.3,0.79631]
[1750398005321,3.2078,2511.4,2511.3,1.48941]
[1750398006330,4.00408,2511.4,2511.3,0.6931]
[1750398006527,4.00408,2511.4,2511.3,1.48941]
[1750398006528,3.2078,2511.4,2511.3,1.48941]
[1750398006827,4.00408,2511.4,2511.3,1.48941]
[1750398007029,3.2078,2511.4,2511.3,1.48941]
[1750398007623,4.00408,2511.4,2511.3,1.48941]
[1750398008122,3.2078,2511.4,2511.3,1.48941]
[1750398008629,4.00408,2511.4,2511.3,1.48941]
[1750398008830,3.2078,2511.4,2511.3,1.48941]
[1750398010631,4.00408,2511.4,2511.3,1.48941]
[1750398011533,0.79628,2511.4,2511.3,24.8881]
[1750398011830,0.79628,2511.4,2511.3,25.68441]
[1750398012323,0.79628,2511.4,2511.3,0.6931]
[1750398012529,0.79633,2511.3,2511.2,0.79634]
[1750398012730,0.79633,2511.3,2511.2,24.99134]
[1750398013533,0.79631,2511.3,2511.2,24.99134]
[1750398014028,1.2767,2511.5,2511.1,3.82367932]
[1750398014231,0.79634,2511.3,2511.2,24.98834]
[1750398014426,0.7963,2511.4,2511.3,0.79631]
[1750398015835,0.7963,2511.4,2511.2,24.98832]
[1750398017230,0.79631,2511.3,2511.2,24.98832]
[1750398017727,0.7963,2511.4,2511.3,0.79631]
[1750398018439,0.79631,2511.3,2511.2,24.98833]
[1750398019138,0.7963,2511.4,2511.3,0.79631]
[1750398019340,0.86563781,2511.4,2511.3,0.79631]
[1750398019838,0.79631,2511.3,2511.2,24.98833]
[1750398020726,0.86564781,2511.4,2511.3,0.79631]
[1750398021130,0.79631,2511.3,2511.2,24.98832]
[1750398022935,0.86563781,2511.4,2511.3,0.79631]
[1750398023131,0.06933781,2511.4,2511.3,0.79631]
[1750398023338,0.86561781,2511.4,2511.3,0.79631]
[1750398023536,2.05380877,2511.4,2511.3,0.79631]
[1750398024038,1.25752877,2511.4,2511.3,0.79631]
[1750398024235,2.05380877,2511.4,2511.3,0.79631]
[1750398024737,0.79631,2511.3,2511.2,24.98832]
[1750398028236,0.86563781,2511.4,2511.3,0.79631]
[1750398028640,2.05448528,2511.4,2511.3,0.79631]
[1750398030442,0.79631,2511.3,2511.2,24.98832]
[1750398031041,0.86563781,2511.4,2511.3,0.79631]
[1750398031541,2.05481244,2511.4,2511.3,0.79631]
[1750398033042,1.25851244,2511.4,2511.3,3.96658932]
[1750398036940,1.25851244,2511.4,2511.3,5.27558932]
[1750398039039,1.25851244,2511.4,2511.3,35.66258932]
[1750398040339,1.24848126,2511.4,2511.3,34.35358932]
[1750398042149,1.24848126,2511.4,2511.3,34.35258932]
[1750398043345,1.24848126,2511.4,2511.3,3.96658932]
[1750398043543,1.24848126,2511.4,2511.3,34.35258932]
[1750398043743,2.04476126,2511.4,2511.3,34.35258932]
[1750398043940,2.04476126,2511.4,2511.3,3.96658932]
[1750398044141,1.24848126,2511.4,2511.3,34.35258932]
[1750398044446,2.04476126,2511.4,2511.3,34.35258932]
[1750398046548,1.24848126,2511.4,2511.3,34.35258932]
[1750398047153,2.04476126,2511.4,2511.3,34.35258932]
[1750398047949,1.24848126,2511.4,2511.3,34.35258932]
[1750398048935,0.06933781,2511.4,2511.3,34.35258932]
[1750398049141,0.06933781,2511.4,2511.3,35.71448932]
[1750398050245,0.06933781,2511.4,2511.3,40.71448932]
[1750398050947,7.81e-06,2511.4,2511.3,40.71448932]
[1750398051753,5.38802,2512.6,2512.0,1.99017]
[1750398052050,1.17348668,2512.5,2512.4,3.96622932]
[1750398052350,1.17348668,2512.5,2512.4,28.15922932]
[1750398053343,5.38802,2512.6,2512.4,28.15922932]
[1750398053540,5.38802,2512.6,2512.4,27.36327932]
[1750398053940,5.38802,2512.6,2512.4,28.15920932]
[1750398054143,0.79593,2512.5,2512.4,28.15920932]
[1750398055744,0.79593,2512.5,2512.4,24.193]
[1750398055945,0.79593,2512.5,2512.4,24.98897]
[1750398056949,2.18022,2512.6,2512.4,24.98897]
[1750398057144,2.18022,2512.6,2512.5,0.79593]
[1750398057145,1.3843,2512.6,2512.5,0.79593]
[1750398058151,0.79593,2512.5,2512.4,24.98895]
[1750398058449,1.2979,2512.7,2512.4,24.193]
[1750398058749,2.0938,2512.7,2512.6,0.7959]
[1750398058953,2.46393438,2512.7,2512.3,6.207]
[1750398059151,0.79597,2512.4,2512.3,6.207]
[1750398059554,2.72577,2512.4,2512.3,6.207]
[1750398060047,2.72577,2512.4,2512.3,7.003]
[1750398060244,1.9298,2512.4,2512.3,7.003]
[1750398060453,0.6332,2512.4,2512.3,10.17327932]
[1750398060947,1.42917,2512.4,2512.3,10.17327932]
[1750398061146,0.6332,2512.4,2512.3,10.17327932]
[1750398062258,2.11861,2512.6,2512.5,0.79593]
[1750398062555,0.79595,2512.5,2512.4,0.79594]
[1750398062854,2.11865,2512.5,2512.4,0.79594]
[1750398063251,0.79592,2512.6,2512.5,0.79592]
[1750398063761,0.79594,2512.5,2512.4,0.79594]
[1750398064449,2.11862,2512.6,2512.5,0.79593]
[1750398064655,0.79595,2512.5,2512.4,0.79595]
[1750398065757,2.11863,2512.6,2512.5,0.79593]
[1750398072864,0.79593,2512.5,2512.4,1.48344]
[1750398074369,2.11861,2512.6,2512.5,0.79593]
[1750398075164,0.79591,2512.6,2512.5,0.79593]
[1750398076671,0.79589,2512.7,2512.6,0.79587]
[1750398076872,1.96111408,2512.7,2512.6,0.79587]
[1750398077868,2.61821408,2512.7,2512.6,0.79587]
[1750398078266,2.61876534,2512.7,2512.6,0.79587]
[1750398078767,2.61876534,2512.7,2512.4,0.6875]
[1750398078973,1.96169534,2512.6,2512.5,0.79591]
[1750398080969,1.16577534,2512.6,2512.5,0.79591]
[1750398082474,1.16577534,2512.6,2512.5,3.96618932]
[1750398084077,1.96167534,2512.6,2512.5,3.96618932]
[1750398084374,1.16577534,2512.6,2512.5,3.96618932]
[1750398084777,0.06933781,2512.7,2512.6,0.7959]
[1750398084969,1.2360079,2512.7,2512.6,0.7959]
[1750398087680,2.0318779,2512.7,2512.6,0.7959]
[1750398089771,1.2360079,2512.7,2512.6,0.7959]
[1750398091377,2.0318779,2512.7,2512.6,0.7959]
[1750398092379,1.2360079,2512.7,2512.6,0.7959]
[1750398093883,0.06933781,2512.7,2512.6,0.7959]
[1750398094082,0.06933781,2512.7,2512.6,2.7576]
[1750398095490,0.06933781,2512.7,2512.6,5.92787932]
[1750398100988,0.86520781,2512.7,2512.6,0.7959]
[1750398101282,0.86520781,2512.7,2512.6,24.9609]
[1750398102083,0.06933781,2512.7,2512.6,24.9609]
[1750398102582,0.86520781,2512.7,2512.6,24.9609]
[1750398103477,0.06933781,2512.7,2512.6,24.9609]
[1750398104084,0.06933781,2512.7,2512.6,0.7959]
[1750398104281,0.06933781,2512.7,2512.6,31.1639]
[1750398104583,0.06933781,2512.7,2512.6,6.9999]
[1750398105387,0.86520781,2512.7,2512.6,6.9999]
[1750398105885,0.06933781,2512.7,2512.6,6.9999]
[1750398106185,0.86520781,2512.7,2512.6,6.9999]
[1750398106781,0.06933781,2512.7,2512.6,6.9999]
[1750398106985,1.37693781,2512.7,2512.6,0.7959]
[1750398107286,1.37693781,2512.7,2512.6,31.1629]
[1750398107774,2.17280781,2512.7,2512.6,31.1629]
[1750398108885,1.37693781,2512.7,2512.6,31.1629]
[1750398109386,2.17280781,2512.7,2512.6,31.1629]
[1750398109586,1.37693781,2512.7,2512.6,31.1629]
[1750398110282,2.17280781,2512.7,2512.6,31.1629]
[1750398110587,2.17280781,2512.7,2512.6,6.9999]
[1750398110783,2.17280781,2512.7,2512.6,31.1629]
[1750398111985,1.37693781,2512.7,2512.6,31.1629]
[1750398112488,1.37693781,2512.7,2512.6,34.33317932]
[1750398112691,0.06933781,2512.7,2512.6,34.33317932]
[1750398119392,0.86520781,2512.7,2512.6,34.33317932]
[1750398119787,2.03210276,2512.7,2512.6,34.33317932]
[1750398120292,2.03210276,2512.7,2512.6,34.33017932]
[1750398120895,1.23623276,2512.7,2512.6,34.33017932]
[1750398122989,0.06933781,2512.7,2512.6,34.33017932]
[1750398123590,1.23423919,2512.7,2512.6,34.33017932]
[1750398123790,0.06933781,2512.7,2512.6,34.33017932]
[1750398125601,2.03011423,2512.7,2512.6,34.33017932]
[1750398126799,1.23424423,2512.7,2512.6,34.33017932]
[1750398130001,0.06933781,2512.7,2512.6,34.33017932]
[1750398131304,7.81e-06,2512.7,2512.6,34.33017932]
[1750398131495,7.81e-06,2512.7,2512.6,39.33017932]
[1750398131696,7.81e-06,2512.7,2512.6,10.16617932]
[1750398131902,7.81e-06,2512.7,2512.6,3.96617932]
[1750398132095,7.81e-06,2512.7,2512.6,10.16617932]
[1750398132295,7.81e-06,2512.7,2512.6,34.32317932]
[1750398133490,7.81e-06,2512.7,2512.6,10.16617932]
[1750398133801,7.81e-06,2512.7,2512.6,34.32217932]
[1750398134201,0.79587781,2512.7,2512.6,34.32217932]
[1750398134704,0.79587781,2512.7,2512.6,10.16617932]
[1750398134903,7.81e-06,2512.7,2512.6,34.32217932]
[1750398135202,7.81e-06,2512.7,2512.6,3.96617932]
[1750398135504,7.81e-06,2512.7,2512.6,34.32117932]
[1750398135904,0.79587781,2512.7,2512.6,34.32117932]
[1750398136106,7.81e-06,2512.7,2512.6,34.32117932]
[1750398140712,0.79587781,2512.7,2512.6,34.32117932]
[1750398141009,7.81e-06,2512.7,2512.6,34.32117932]
[1750398165625,7.81e-06,2512.7,2512.6,10.16017932]
[1750398165829,7.81e-06,2512.7,2512.6,34.30617932]
[1750398169934,7.81e-06,2512.7,2512.6,3.96617932]
[1750398170130,7.81e-06,2512.7,2512.6,34.30417932]
[1750398172033,7.81e-06,2512.7,2512.6,10.16017932]
[1750398172230,7.81e-06,2512.7,2512.6,34.30417932]
[1750398172931,0.79593,2512.5,2512.4,6.8815]
[1750398173130,0.79593,2512.5,2512.4,6.194]
[1750398173430,0.79593,2512.5,2512.4,30.337]
[1750398173636,0.79593,2512.5,2512.4,31.13297]
[1750398173838,2.09763,2512.5,2512.4,30.337]
[1750398174128,1.3017,2512.5,2512.2,3.2078]
[1750398174333,1.3017,2512.4,2512.3,28.10927932]
[1750398174933,1.3017,2512.4,2512.3,3.96627932]
[1750398175128,1.3017,2512.4,2512.3,28.11027932]
[1750398175733,1.3017,2512.4,2512.3,3.96627932]
[1750398175939,1.3017,2512.4,2512.3,28.11027932]
[1750398176532,0.79595,2512.5,2512.4,0.79597]
[1750398176934,0.796,2512.3,2512.2,13.36808932]
[1750398177230,0.796,2512.3,2512.2,37.51208932]
[1750398177630,1.452,2512.3,2512.2,37.51208932]
[1750398178041,1.452,2512.3,2512.2,36.71607932]
[1750398178243,2.0784,2512.3,2512.2,36.71607932]
[1750398178443,2.0784,2512.3,2512.2,37.51210932]
[1750398178644,2.0784,2512.3,2512.2,36.71607932]
[1750398179449,2.0784,2512.3,2512.2,9.4018]
[1750398179642,2.0784,2512.3,2512.2,33.5448]
[1750398179835,2.0784,2512.3,2512.2,3.2078]
[1750398180037,2.0784,2512.3,2512.2,27.3508]
[1750398181949,2.0784,2512.3,2512.2,28.14683]
[1750398182446,2.0784,2512.3,2512.2,24.93903]
[1750398183045,2.0784,2512.3,2512.2,28.10930932]
[1750398185750,2.14773781,2512.3,2512.2,28.10930932]
[1750398186749,2.14773781,2512.3,2512.2,24.93903]
[1750398188346,0.06933781,2512.3,2512.2,24.93903]
[1750398188545,0.06933781,2512.3,2512.2,25.61163]
[1750398189047,0.06933781,2512.3,2512.2,25.61063]
[1750398190953,0.86533781,2512.3,2512.2,25.61063]
[1750398191250,0.06933781,2512.3,2512.2,28.81843]
[1750398191553,0.06933781,2512.3,2512.2,30.10393]
[1750398192148,0.6647,2513.3,2512.6,1.98972]
[1750398192349,1.46038,2513.3,2513.2,3.17027932]
[1750398192554,2.62023434,2513.3,2513.2,3.17027932]
[1750398193048,0.79571,2513.2,2513.1,24.93674]
[1750398193451,0.79571,2513.2,2513.1,24.141]
[1750398193652,0.79571,2513.2,2513.1,24.93674]
[1750398193852,0.79571,2513.2,2513.1,24.141]
[1750398194054,0.79571,2513.2,2513.1,24.93674]
[1750398195153,0.79571,2513.2,2513.1,24.78]
[1750398195459,0.79571,2513.2,2513.1,25.57574]
[1750398196353,0.79571,2513.2,2513.1,24.78]
[1750398199951,0.86504781,2513.2,2513.1,24.78]
[1750398200461,0.86504781,2513.2,2513.1,25.57574]
[1750398202963,0.86504781,2513.2,2513.1,24.78]
[1750398203557,0.79581,2512.9,2512.8,4.00363]
[1750398203753,0.79579,2513.0,2512.9,0.79577]